[Event "SixDays Budapest March GM-B 2023"]
[Site "Budapest"]
[Date "2023.03.24"]
[Round "1.1"]
[White "Priasmoro, Novendra"]
[Black "Vantika Agrawal"]
[Result "1/2-1/2"]
[ECO "B91"]
[WhiteElo "2521"]
[BlackElo "2367"]
[Annotator "TA"]
[PlyCount "247"]
[EventDate "2023.03.24"]
[EventType "tourn"]
[EventCountry "HUN"]
[SourceTitle "playchess.com"]
[Source "ChessBase"]
[SourceQuality "1"]
[TimeControl "5400+30"]

{[%evp 29,247,0,0,0,0,0,0,0,0,-10,-7,0,0,0,0,0,14,16,18,0,0,0,12,19,20,0,39,27,34,35,125,0,0,-27,-32,-32,-52,-48,-36,-60,31,31,31,31,31,-12,-8,-8,-8,-8,-8,-8,-8,-8,-8,-8,-8,-8,-8,-20,-23,-29,-8,-8,-9,-8,0,0,0,0,0,0,0,0,0,0,0,-20,0,0,0,0,0,0,0,0,0,0,0,0,0,0,0,0,0,0,8,8,8,8,8,0,0,0,0,0,0,0,0,0,0,0,0,0,8,0,0,0,0,0,0,0,0,0,0,0,0,0,0,0,0,0,0,0,0,0,8,8,8,8,8,8,8,8,8,8,8,0,0,0,8,0,0,0,0,0,0,0,0,0,0,0,0,0,0,0,0,0,8,8,8,8,8,8,8,0,0,0,8,8,8,0,0,0,8,0,0,0,8,8,8,8,8,0,8,0,0,0,0,0,0,0,0,0,0,0,0,0,0,0,0,0,0,0,0,0,0,0,0,0]} 1. e4 {[%emt 0:00:36]} c5 {[%emt 0:00:47]} 2. Nf3 {[%emt 0:00:52]} d6 {[%emt 0:00:07]} 3. d4 {[%emt 0:00:48]} cxd4 {[%emt 0:00:08]} 4. Nxd4 {[%emt 0:00:05]} Nf6 {[%emt 0:00:06]} 5. Nc3 {[%emt 0:00:05]} a6 {[%emt 0:00:04]} 6. g3 {[%emt 0:00:34]} e5 {[%emt 0:00:38]} 7. Nde2 {[%emt 0:00:07]} Be7 {[%emt 0:01:17]} 8. Bg2 {[%emt 0:00:10]} b5 {[%emt 0:01:40]} 9. Nd5 {[%emt 0:00:10]} Nbd7 {[%emt 0:00:40]} 10. Nec3 {[%emt 0:08:21]} Nb6 {[%emt 0:12:36]} 11. Nxe7 {[%emt 0:11:23]} Qxe7 {[%emt 0:00:32]} 12. Be3 {[%emt 0:05:41]} Qc7 {[%emt 0:13:31]} 13. O-O {[%emt 0:01:33]} O-O {[%emt 0:06:41]} 14. a4 {[%emt 0:06:28]} Nxa4 {[%emt 0:18:23]} 15. Nxa4 {[%emt 0:00:17]} bxa4 {[%emt 0:00:03]} 16. Rxa4 {[%emt 0:00:32]} Bd7 {[%emt 0:02:15]} 17. Ra3 {[%emt 0:08:10]} Bc6 {[%emt 0:00:58]} 18. Rc3 {[%emt 0:04:24]} Qd7 {[%emt 0:07:44]} 19. Rd3 {[%emt 0:08:28]} Nxe4 {[%emt 0:06:00]} 20. f3 {[%emt 0:00:57]} Nf6 {[%emt 0:01:24]} 21. Rxd6 {[%emt 0:00:07]} Qb7 {[%emt 0:01:57]} 22. c4 {[%emt 0:04:19]} Ne8 {[%emt 0:02:18]} 23. Rd3 {[%emt 0:00:48]} Nf6 {[%emt 0:00:56]} 24. Rd6 {[%emt 0:13:07]} Ne8 {[%emt 0:00:17]} 25. Rd8 {[%emt 0:03:09]} Rxd8 {[%emt 0:03:52]} 26. Qxd8 {[%emt 0:00:03]} Nf6 {[%emt 0:00:17]} 27. Qd6 {[%emt 0:04:07]} e4 {[%emt 0:09:05]} 28. f4 {[%emt 0:00:23]} a5 {[%emt 0:02:06]} 29. Bd4 {[%emt 0:01:26]} Qd7 {[%emt 0:01:02]} ({Black should try} 29... Rc8 $14) 30. Qc5 {[%emt 0:03:30]} ({White has to play} 30. Qxd7 $1 $16 Nxd7 31. Rd1) 30... Rc8 $11 {[%emt 0:01:08]} 31. Bxf6 {[%emt 0:08:59]} gxf6 {[%emt 0:00:10]} 32. Qxa5 {[%emt 0:00:06]} Qd4+ {[%emt 0:00:21]} 33. Kh1 {[%emt 0:00:04]} Qxc4 {[%emt 0:00:59]} 34. Qf5 {[%emt 0:00:41]} Qe6 {[%emt 0:00:25]} (34... Bb7 $1 $15 35. Ra1 Kg7 36. Qg4+ Kf8) 35. Qxe6 $14 {[%emt 0:03:30]} fxe6 {[%emt 0:00:04]} 36. Rc1 {[%emt 0:00:12]} Rd8 {[%emt 0:06:43]} 37. Kg1 {[%emt 0:01:01]} (37. Rxc6 $5 {[%cal Rg2e4]} Rd1+ 38. Bf1 Rxf1+ 39. Kg2 $16) 37... Bb7 {[%emt 0:00:51]} 38. Rc2 {[%emt 0:02:04]} Rd4 {[%emt 0:00:52]} 39. Kf2 {[%emt 0:00:23]} Bd5 {[%emt 0:00:18]} 40. Bf1 {[%emt 0:00:33]} f5 {[%emt 0:00:42]} 41. Ke3 {[%emt 0:00:36]} Rb4 {[%emt 0:00:10]} 42. Be2 {[%emt 0:00:34]} Kf7 {[%emt 0:00:32]} 43. Kd2 {[%emt 0:00:16]} Ke7 {[%emt 0:00:28]} 44. Kc1 {[%emt 0:01:20]} Kd6 {[%emt 0:00:14]} 45. Rc3 {[%emt 0:00:18]} e5 {[%emt 0:00:48]} 46. Kc2 $1 {[%emt 0:01:38]} exf4 {[%emt 0:00:42]} 47. gxf4 {[%emt 0:00:04]} e3 {[%emt 0:00:35]} 48. Rxe3 {[%emt 0:00:02]} Rxf4 {[%emt 0:00:08]} 49. Rh3 {[%emt 0:00:13]} Rf2 {[%emt 0:00:46]} 50. Kd1 {[%emt 0:00:04]} f4 {[%emt 0:00:31]} 51. Ke1 {[%emt 0:00:28]} Rg2 {[%emt 0:00:09]} 52. Rh6+ {[%emt 0:00:07]} Rg6 {[%emt 0:00:49]} 53. Rxh7 {[%emt 0:00:09]} f3 {[%emt 0:00:17]} 54. Bf1 {[%emt 0:00:14]} Rg4 {[%emt 0:00:48]} 55. Rh6+ {[%emt 0:00:47]} Ke5 {[%emt 0:00:21]} 56. Rh5+ {[%emt 0:00:26]} Kd6 {[%emt 0:00:10]} 57. Rh6+ {[%emt 0:01:35]} Ke5 {[%emt 0:00:04]} 58. Rb6 {[%emt 0:00:16]} Rh4 {[%emt 0:00:29]} 59. h3 {[%emt 0:00:16]} Re4+ {[%emt 0:01:04]} 60. Kf2 {[%emt 0:00:04]} Rd4 {[%emt 0:00:19]} 61. Rb8 {[%emt 0:01:09]} Kf4 {[%emt 0:01:03]} 62. Rf8+ {[%emt 0:00:02]} Ke4 {[%emt 0:00:26]} 63. Rxf3 {[%emt 0:02:08]} Rd2+ {[%emt 0:00:03]} 64. Kg3 {[%emt 0:00:05]} Rxb2 {[%emt 0:00:16]} 65. Rf8 {[%emt 0:00:17]} Ke5 {[%emt 0:00:22]} 66. h4 {[%emt 0:00:17]} Rb3+ {[%emt 0:00:52]} 67. Kg4 {[%emt 0:00:15]} Be6+ {[%emt 0:00:30]} 68. Kg5 {[%emt 0:00:50]} Rg3+ {[%emt 0:00:23]} 69. Kh6 {[%emt 0:00:06]} Bf5 {[%emt 0:00:30]} 70. h5 {[%emt 0:00:20]} Rg1 {[%emt 0:01:09]} 71. Bc4 {[%emt 0:00:15]} Rh1 {[%emt 0:00:30]} 72. Bf7 {[%emt 0:01:20]} Bg4 {[%emt 0:00:29]} 73. Kg5 {[%emt 0:00:08]} Bxh5 {[%emt 0:00:18]} 74. Bxh5 {[%emt 0:00:05]} Rg1+ {[%emt 0:00:07]} 75. Bg4 {[%emt 0:00:02]} Rg2 {[%emt 0:00:36]} 76. Re8+ {[%emt 0:00:04]} Kd4 {[%emt 0:00:10]} 77. Kf4 {[%emt 0:00:03]} Rf2+ {[%emt 0:00:52]} 78. Bf3 {[%emt 0:00:03]} Rh2 {[%emt 0:00:15]} 79. Rd8+ {[%emt 0:00:04]} Kc5 {[%emt 0:00:19]} 80. Ke5 {[%emt 0:00:03]} Rh3 {[%emt 0:00:20]} 81. Rc8+ {[%emt 0:00:04]} Kb4 {[%emt 0:00:09]} 82. Be4 {[%emt 0:00:38]} Rh5+ {[%emt 0:00:12]} 83. Kd4 {[%emt 0:00:05]} Rh4 {[%emt 0:00:04]} 84. Rb8+ {[%emt 0:00:04]} Ka4 {[%emt 0:00:05]} 85. Kd5 {[%emt 0:00:07]} Ka3 {[%emt 0:00:05]} 86. Ke5 {[%emt 0:00:35]} Rg4 {[%emt 0:00:46]} 87. Kd4 {[%emt 0:02:03]} Ka4 {[%emt 0:00:11]} 88. Kd3 {[%emt 0:01:01]} Ka5 {[%emt 0:00:05]} 89. Bd5 {[%emt 0:00:18]} Rb4 {[%emt 0:00:07]} 90. Ra8+ {[%emt 0:00:07]} Kb6 {[%emt 0:00:14]} 91. Bc4 {[%emt 0:00:14]} Kc5 {[%emt 0:00:28]} 92. Ra5+ {[%emt 0:00:13]} Kd6 {[%emt 0:00:10]} 93. Kd4 {[%emt 0:00:04]} Rb1 {[%emt 0:00:17]} 94. Ra6+ {[%emt 0:00:02]} Ke7 {[%emt 0:00:29]} 95. Bd5 {[%emt 0:00:07]} Rd1+ {[%emt 0:00:11]} 96. Ke5 {[%emt 0:00:26]} Re1+ {[%emt 0:00:04]} 97. Be4 {[%emt 0:00:06]} Re2 {[%emt 0:02:36]} 98. Re6+ {[%emt 0:00:18]} Kf8 {[%emt 0:00:57]} 99. Kf6 {[%emt 0:00:24]} Re1 {[%emt 0:00:48]} 100. Re5 {[%emt 0:00:05]} Re2 {[%emt 0:00:20]} 101. Rh5 {[%emt 0:00:15]} Ke8 $1 {[%emt 0:00:20]} 102. Bf5 {[%emt 0:00:16]} Kd8 {[%emt 0:00:35]} 103. Rh7 {[%emt 0:00:10]} Re7 {[%emt 0:01:52]} 104. Rh4 {[%emt 0:02:23]} Ra7 {[%emt 0:00:36]} 105. Rc4 {[%emt 0:00:25]} Rf7+ {[%emt 0:00:21]} 106. Ke5 {[%emt 0:00:27]} Rc7 {[%emt 0:00:33]} 107. Rh4 {[%emt 0:00:14]} Re7+ {[%emt 0:01:09]} 108. Be6 {[%emt 0:00:05]} Rc7 {[%emt 0:01:05]} 109. Rh8+ {[%emt 0:00:15]} Ke7 {[%emt 0:00:05]} 110. Bd5 {[%emt 0:00:03]} Rd7 {[%emt 0:00:39]} 111. Bc6 {[%emt 0:00:06]} Rc7 {[%emt 0:00:22]} 112. Rh6 {[%emt 0:00:42]} Kd8 {[%emt 0:00:24]} 113. Kd5 {[%emt 0:01:04]} Rg7 {[%emt 0:00:27]} 114. Rh8+ {[%emt 0:00:23]} Ke7 {[%emt 0:00:18]} 115. Rh5 {[%emt 0:01:16]} Kf6 {[%emt 0:00:24]} 116. Kd6 {[%emt 0:00:12]} Rg1 {[%emt 0:00:43]} 117. Rh8 {[%emt 0:00:17]} Ra1 {[%emt 0:00:22]} 118. Rf8+ {[%emt 0:00:06]} Kg5 {[%emt 0:00:08]} 119. Ke5 {[%emt 0:00:09]} Ra5+ {[%emt 0:00:17]} 120. Bd5 {[%emt 0:00:03]} Rb5 {[%emt 0:00:36]} 121. Rf5+ {[%emt 0:00:05]} Kh6 {[%emt 0:00:54]} 122. Kf6 {[%emt 0:00:08]} Ra5 {[%emt 0:00:19]} 123. Re5 {[%emt 0:00:04]} Rb5 {[%emt 0:00:59]} 124. Re8 {[%emt 0:00:05]} 1/2-1/2

[Event "SixDays Budapest March GM-B 2023"]
[Site "Budapest"]
[Date "2023.03.24"]
[Round "1.2"]
[White "Swayams, Mishra"]
[Black "Tran, Thanh Tu"]
[Result "1-0"]
[ECO "E10"]
[WhiteElo "2489"]
[BlackElo "2402"]
[Annotator "TA"]
[PlyCount "129"]
[EventDate "2023.03.24"]
[EventType "tourn"]
[EventCountry "HUN"]
[SourceTitle "playchess.com"]
[Source "ChessBase"]
[SourceQuality "1"]
[TimeControl "5400+30"]

{[%evp 14,129,27,35,60,56,67,70,87,77,70,54,80,72,94,92,91,90,97,87,108,64,107,114,109,106,140,114,160,108,133,137,122,135,161,125,152,64,69,62,60,54,49,46,110,93,120,116,141,137,134,81,80,45,88,0,88,39,39,35,38,41,87,19,73,73,66,72,74,-56,-56,-56,-56,-56,-56,-59,0,0,0,0,0,0,0,0,0,0,0,0,0,0,0,0,0,0,0,0,0,0,0,0,0,0,390,337,458,0,29980,29981,29983,29979,29984,29985,29993,29994,29994,29994,29994,29987]} 1. d4 {[%emt 0:01:50]} e6 {[%emt 0:00:56]} 2. c4 {[%emt 0:00:30]} Nf6 {[%emt 0:01:38]} 3. Nf3 {[%emt 0:00:13]} Nc6 {[%emt 0:00:31]} 4. a3 {[%emt 0:00:05]} g6 {[%emt 0:01:22]} 5. Nc3 {[%emt 0:00:05]} Bg7 {[%emt 0:00:05]} 6. e4 {[%emt 0:00:05]} d6 {[%emt 0:00:25]} 7. Be2 {[%emt 0:00:06]} O-O {[%emt 0:00:22]} 8. O-O {[%emt 0:00:05]} a5 {[%emt 0:02:16] E10: Blumenfeld Gambit.} 9. Be3 {[%emt 0:04:07]} b6 {[%emt 0:08:00]} 10. h3 {[%emt 0:03:56] [#]} h6 $146 {[%emt 0:07:12] White is slightly better.} ({Predecessor:} 10... e5 11. dxe5 dxe5 12. c5 Be6 13. cxb6 cxb6 14. Bb5 Na7 15. Qxd8 Raxd8 16. Be2 Nc6 {½-½ Henrichs,W (2069)-Heimsoth,S (2215) Oberhausen op 11th 2006 (7)}) 11. Qd2 {[%emt 0:06:48]} Kh7 {[%emt 0:00:20]} 12. Rfd1 {[%emt 0:00:15]} Bb7 {[%emt 0:04:18]} 13. Qc2 {[%emt 0:01:09]} Qe7 {[%emt 0:07:11]} 14. Rac1 {[%emt 0:02:49]} Rfd8 {[%emt 0:06:44]} 15. d5 {[%emt 0:10:16]} Ne5 {[%emt 0:08:01]} 16. Nd4 {[%emt 0:03:11]} g5 {[%emt 0:01:58]} 17. b4 {[%emt 0:04:14]} Ng6 {[%emt 0:06:09]} 18. Ncb5 {[%emt 0:09:13]} axb4 {[%emt 0:02:21]} 19. axb4 {[%emt 0:00:57]} Ne8 {[%emt 0:01:28]} 20. Bh5 {[%emt 0:16:27] White has more active pieces. The black rooks are badly placed.} Nf4 {[%emt 0:14:35]} (20... Ne5 $142) 21. Bg4 {[%emt 0:07:26]} (21. Bxf4 $142 gxf4 22. dxe6 fxe6 23. e5+ Kh8 24. Qg6 dxe5 25. Nxe6 (25. Qxe6 Qh4 $14) 25... Rxd1+ 26. Rxd1) 21... h5 {[%emt 0:00:36]} 22. Bf3 {[%emt 0:00:30] Hoping for Bxf4.} Be5 {[%emt 0:00:24]} 23. Bxf4 {[%emt 0:01:41]} Bxf4 {[%emt 0:02:38]} 24. dxe6 {[%emt 0:01:07] Black is weak on the light squares} Kh8 {[%emt 0:02:56]} 25. exf7 {[%emt 0:00:55]} (25. Bxh5 $16 {[%cal Oe6f7]} Bxc1 26. Qxc1 (26. Rxc1 fxe6 27. Bg4 Ng7 $11) 26... fxe6 27. Nf3) 25... Qxf7 $14 {[%emt 0:00:13]} 26. Rb1 {[%emt 0:00:59][%cal Oe4e5] And now e5! would win.} Be5 {[%emt 0:01:18]} 27. Nf5 {[%emt 0:00:38]} Nf6 {[%emt 0:00:19] ...g4 is the strong threat.} 28. g3 {[%emt 0:04:05]} g4 {[%emt 0:01:36]} (28... Rf8 $14) 29. hxg4 $16 {[%emt 0:00:05]} hxg4 {[%emt 0:00:04]} 30. Bg2 {[%emt 0:00:42]} Rd7 {[%emt 0:00:26]} 31. Nbd4 {[%emt 0:07:00]} Re8 {[%emt 0:01:27]} 32. b5 {[%emt 0:04:32]} (32. c5 $142 {aiming for c6.} dxc5 33. bxc5 Bxd4 34. Rxd4 Rxd4 35. Nxd4) 32... Qh5 {[%emt 0:01:51]} 33. Nh4 {[%emt 0:00:23] A dynamic duo of knights.} Rh7 {[%emt 0:05:10]} 34. Ndf5 {[%emt 0:00:57]} (34. Ra1 $1 $16) 34... Ra8 {[%emt 0:01:00]} (34... Nd7 $11 {remains equal.}) 35. Rb3 {[%emt 0:00:59]} ({White should play} 35. Rb4 $16) 35... Nd7 $1 $14 {[%emt 0:00:49]} 36. Re3 {[%emt 0:03:48]} Nc5 {[%emt 0:00:18] Prevents Rdd3} 37. Qe2 {[%emt 0:01:54]} Bc8 {[%emt 0:01:01]} (37... Ne6 $14) 38. Nd4 {[%emt 0:03:47]} (38. Rd2 $16) 38... Be6 {[%emt 0:01:03]} (38... Bd7 $11 {keeps the balance.}) 39. Nxe6 $16 {[%emt 0:01:24]} Nxe6 {[%emt 0:00:02]} 40. Red3 {[%emt 0:00:14] Prevents Nd4.} Qg5 {[%emt 0:02:11] ...Rxh4 would be deadly.} 41. Rd5 {[%emt 0:00:29]} (41. Nf5 $1 $16) 41... Rxh4 $1 $15 {[%emt 0:01:10]} 42. gxh4 {[%emt 0:00:05]} Qxh4 {[%emt 0:00:05]} 43. Rxe5 $1 {[%emt 0:01:10]} dxe5 {[%emt 0:00:13]} 44. Qb2 $1 {[%emt 0:00:22]} Nd4 {[%emt 0:04:30]} ({Black should try} 44... Qf6 $1 $15) 45. Rxd4 $1 $11 {[%emt 0:00:02]} exd4 {[%emt 0:00:03]} 46. Qxd4+ {[%emt 0:00:05][%mdl 4096] Endgame KQR-KQB} Kh7 {[%emt 0:00:03]} 47. Qd7+ {[%emt 0:00:13]} Kh8 {[%emt 0:00:09]} 48. Qd4+ {[%emt 0:00:04]} Kh7 {[%emt 0:00:04]} 49. Qd7+ {[%emt 0:00:21]} Kh8 {[%emt 0:00:02]} 50. Qd4+ {[%emt 0:01:28]} Kh7 {[%emt 0:00:53]} 51. e5 {[%emt 0:00:32]} Rd8 {[%emt 0:01:16] Wards off Qd7+} 52. Bd5 {[%emt 0:00:02]} Qg5 {[%emt 0:01:11] Against Qf4} 53. Kg2 {[%emt 0:00:15]} Re8 {[%emt 0:03:49]} 54. e6 {[%emt 0:00:17]} Re7 {[%emt 0:00:21]} 55. Kg3 {[%emt 0:01:03]} Qh5 {[%emt 0:00:43]} 56. Qf6 {[%emt 0:01:37]} (56. Qxg4 $2 Rg7 57. Be4+ Kg8 $19) 56... Qh3+ {[%emt 0:00:30]} (56... Re8 $2 57. Be4+ Kg8 58. e7 $18) 57. Kf4 {[%emt 0:00:02] Really sharp!} Qh6+ $2 {[%emt 0:01:13][%mdl 8192] [#]} (57... Qh2+ $11 {and Black is okay.} 58. Ke4 (58. Kxg4 Qg1+ 59. Kh4 Qh2+ 60. Kg4 Qg1+ 61. Kh5 Qh2+ 62. Kg4 $11) 58... Qh1+ 59. Ke5 Qh2+ 60. Kd4 (60. Ke4 Qh1+ 61. Ke5 Qh2+ 62. Kd4 Qd6 $18) 60... Qd6) 58. Ke5 $1 $18 {[%emt 0:00:45] White wants to mate with Be4+.} (58. Kxg4 {leads to mate.} Qxf6 59. f4 Rg7+ 60. Kf3 Qc3+ 61. Kf2 Qd2+ 62. Kf3 Qe1 63. Be4+ Kh6) 58... Qh2+ {[%emt 0:01:14] [#]} 59. Ke4 $2 {[%emt 0:00:40]} ({Only move:} 59. Kd4 $1 $18 Qd6 60. Ke4) 59... Rg7 {[%emt 0:00:43][%mdl 8192]} (59... Qh1+ $11 60. Ke5 Qh2+ 61. Kd4 (61. Ke4 Qh1+ 62. Ke5 Qh2+ $18) 61... Qd6 62. Qh4+ Kg7) 60. e7 {[%emt 0:00:45] White mates.} Qh1+ {[%emt 0:00:11]} 61. Ke5 {[%emt 0:00:36]} Qh5+ {[%emt 0:00:28]} 62. Ke6 {[%emt 0:00:20]} Qe8 {[%emt 0:00:44]} 63. Qh4+ {[%emt 0:00:41]} Kg8 {[%emt 0:00:03]} 64. Ke5+ {[%emt 0:00:11]} Rf7 {[%emt 0:00:06]} 65. Qxg4+ {[%emt 0:00:12] Excellently played by Swayams!   Weighted Error Value: White=0.19 (very precise) /Black=0.38} 1-0

[Event "SixDays Budapest March GM-B 2023"]
[Site "Budapest"]
[Date "2023.03.24"]
[Round "1.3"]
[White "Ilincic, Zlatko"]
[Black "Joshua, A P"]
[Result "1/2-1/2"]
[ECO "D04"]
[WhiteElo "2302"]
[BlackElo "2300"]
[Annotator "TA"]
[PlyCount "130"]
[EventDate "2023.03.24"]
[EventType "tourn"]
[EventCountry "HUN"]
[SourceTitle "playchess.com"]
[Source "ChessBase"]
[SourceQuality "1"]
[TimeControl "5400+30"]

{[%evp 11,130,-8,0,-16,-11,-17,0,0,0,4,-1,6,13,-11,-12,-25,-8,-18,-21,-15,-18,-12,-20,-8,-3,-2,-2,-4,0,-11,-14,-8,-8,-4,-8,0,-1,-1,-1,-1,0,-4,-2,-4,0,0,0,0,0,0,0,0,0,0,111,103,82,36,15,23,87,31,31,26,31,24,25,24,45,42,128,48,143,80,129,24,48,20,16,8,8,0,0,0,0,0,8,8,10,8,8,0,17,40,57,22,241,36,86,17,60,0,8,0,0,0,0,0,0,0,0,0,0,0,0,0,0,0,0,0,0]} 1. d4 {[%emt 0:00:37]} d5 {[%emt 0:00:40]} 2. Nf3 {[%emt 0:00:29]} Nf6 {[%emt 0:00:09]} 3. e3 {[%emt 0:00:20]} c5 {[%emt 0:01:08]} 4. dxc5 {[%emt 0:00:31]} e6 {[%emt 0:00:46]} 5. c4 {[%emt 0:00:19]} Bxc5 {[%emt 0:02:06]} 6. a3 {[%emt 0:00:20]} O-O {[%emt 0:01:45]} 7. Nc3 {[%emt 0:01:35] D30: Queen's Gambit Declined: Systems without Nc3.} dxc4 {[%emt 0:04:20]} 8. Bxc4 {[%emt 0:00:37]} Qc7 {[%emt 0:03:50][%cal Oc5a3]} 9. Qe2 {[%emt 0:00:38]} a6 {[%emt 0:01:11]} 10. O-O {[%emt 0:01:41]} b5 {[%emt 0:00:57]} 11. Bd3 {[%emt 0:00:22]} Bb7 {[%emt 0:01:14]} 12. e4 {[%emt 0:00:57]} (12. b4 $5 {[%cal Rb4c5]} Bd6 13. Bb2 $11) 12... Nbd7 {[%emt 0:05:33]} 13. Be3 {[%emt 0:03:12]} Rad8 {[%emt 0:03:51]} 14. Rac1 {[%emt 0:01:42][%cal Oc3b5] [#]} Bxe3 $146 {[%emt 0:08:23]} ({Predecessor:} 14... Ng4 15. Bxc5 Nxc5 16. Bc2 Qf4 17. b4 Nd7 18. h3 Nge5 19. Nxe5 Nxe5 20. Rfd1 {½-½ Fogh,J (2112)-Hansen,L (2237) Aarhus op 2020 (7)}) 15. Qxe3 {[%emt 0:00:11]} Ng4 {[%emt 0:00:53]} 16. Qg5 {[%emt 0:07:34]} Nde5 {[%emt 0:00:22]} 17. Nxe5 {[%emt 0:02:18]} Qxe5 {[%emt 0:02:21][%csl Gg4][%cal Re5h2]} (17... Nxe5 {simplifies} 18. Be2 Ng6 19. Nxb5 Qb6) 18. Qxg4 {[%emt 0:01:24]} Rxd3 {[%emt 0:00:15]} 19. Rfd1 {[%emt 0:00:30] Inhibits Rd2.} Rxd1+ {[%emt 0:10:30]} 20. Rxd1 {[%emt 0:00:12]} a5 {[%emt 0:01:54]} 21. Qg3 {[%emt 0:02:12]} Qc5 {[%emt 0:30:17]} 22. Qd6 {[%emt 0:00:34]} Qxd6 {[%emt 0:00:11]} 23. Rxd6 $11 {[%emt 0:00:08][%mdl 4096] Endgame KRB-KRN} b4 {[%emt 0:00:15]} 24. axb4 {[%emt 0:00:08]} axb4 {[%emt 0:00:06]} 25. Na2 {[%emt 0:00:11]} Bxe4 {[%emt 0:04:34]} 26. Nxb4 {[%emt 0:00:26]} g5 {[%emt 0:01:36]} 27. f3 {[%emt 0:00:13]} Bf5 {[%emt 0:01:13]} 28. Nc6 {[%emt 0:00:35] Prevents Rb8.} Kg7 {[%emt 0:00:39]} 29. Kf2 {[%emt 0:05:20]} Ra8 {[%emt 0:01:23]} 30. Ke3 {[%emt 0:00:50]} Ra2 {[%emt 0:03:56]} 31. Rd2 {[%emt 0:00:21]} Ra6 {[%emt 0:00:30] Repels b4} 32. Ne5 {[%emt 0:01:28]} Bb1 {[%emt 0:00:59]} (32... Kf6 $11 33. Nc4 Rc6) 33. b4 $1 $16 {[%emt 0:00:25] And now b5 would win.} Kf6 {[%emt 0:01:19]} 34. Nd7+ {[%emt 0:01:06]} (34. b5 $16 {Threatening mate with Nd7+.} Ra3+ 35. Kd4 Ra4+ 36. Nc4) 34... Ke7 $14 {[%emt 0:00:13]} 35. Nc5 {[%emt 0:00:23]} Rb6 {[%emt 0:02:33]} (35... Ra3+ $11 36. Kd4 Ba2) 36. Rb2 {[%emt 0:00:24] White is more active.} (36. Rd7+ $1 $16 Ke8 37. Rb7 Rxb7 38. Nxb7) 36... Bg6 {[%emt 0:00:47]} 37. Kd4 {[%emt 0:00:18]} f6 {[%emt 0:00:41]} 38. b5 {[%emt 0:01:33]} Be8 $1 {[%emt 0:01:26]} 39. Kc4 {[%emt 0:00:17]} Kd6 {[%emt 0:00:43]} 40. Ne4+ {[%emt 0:02:22]} Ke5 {[%emt 0:00:28][%cal Ob6b5] [#]} 41. Nc3 {[%emt 0:00:09]} ({White should play} 41. Kc5 $1 $16 {[%cal Rc5b6]} Rxb5+ 42. Rxb5 Bxb5 43. Kxb5) 41... h5 {[%emt 0:01:32]} (41... Rb8 $14) 42. Re2+ {[%emt 0:08:03]} (42. Kc5 $142 Rb8 43. Re2+ Kf5 44. Re3) 42... Kf5 {[%emt 0:02:09]} ({Better is} 42... Kd6) 43. Rd2 {[%emt 0:02:04]} (43. Kc5 $16 Rb8 44. Re3) 43... Rb8 $11 {[%emt 0:00:12]} 44. Kb4 {[%emt 0:01:43]} g4 {[%emt 0:00:14]} 45. fxg4+ {[%emt 0:00:54]} hxg4 {[%emt 0:00:16]} 46. g3 {[%emt 0:00:12]} Bc6 {[%emt 0:01:01]} 47. Rd6 {[%emt 0:03:04]} Bf3 {[%emt 0:00:16]} 48. b6 {[%emt 0:00:19]} Ke5 {[%emt 0:00:30]} 49. Nb5 {[%emt 0:00:11]} Be2 {[%emt 0:02:01]} 50. Rc6 {[%emt 0:00:17] Kc5 is the strong threat.} Bf3 {[%emt 0:00:33]} 51. Rd6 {[%emt 0:00:54]} Be2 {[%emt 0:00:09] Strongly threatening ...Bxb5.} 52. Rd2 {[%emt 0:00:34]} Bf3 {[%emt 0:00:30]} 53. Kc5 {[%emt 0:00:10] Hoping for Na7.} (53. Ka5 $5 {[%cal Rb5a7]}) 53... Ke4 $2 {[%emt 0:00:35]} (53... Rc8+ $11 54. Nc7 Rh8) 54. Rd6 $2 {[%emt 0:00:37]} ({Only move:} 54. Nd6+ $18 Ke3 55. Nc4+ Ke4 56. Na5) 54... e5 $1 $14 {[%emt 0:00:20] [#]} (54... Ke5 $2 55. Nd4 (55. Nc7 Rh8 $18) 55... Rc8+ 56. Nc6+ Bxc6 57. Rxc6 $18) 55. Rxf6 {[%emt 0:00:28]} (55. Na7 $1 $16 {[%cal Ra7c6] aiming for Nc6.} Ke3 56. Rxf6) 55... Kd3 {[%emt 0:00:24]} 56. Rd6+ {[%emt 0:01:04]} (56. h3 $14 Rc8+ 57. Kb4) 56... Ke3 {[%emt 0:00:20] The position is equal.} 57. Re6 {[%emt 0:01:16]} (57. Na7 $5 Rh8 $8 58. Nc6 Rxh2 59. Nxe5 $11 (59. b7 Rc2+ 60. Kb5 Rb2+ 61. Ka6 Ra2+ 62. Kb6 Rb2+ 63. Ka7 Kf2 $11)) 57... e4 {[%emt 0:00:23]} 58. Nc3 {[%emt 0:09:22]} Kf2 {[%emt 0:01:26]} 59. Nxe4+ {[%emt 0:00:22]} Kg2 {[%emt 0:00:02]} 60. Nd6 {[%emt 0:03:30]} Kxh2 {[%emt 0:00:13]} 61. Nf5 {[%emt 0:00:11]} Rf8 {[%emt 0:01:07]} 62. Re5 {[%emt 0:00:46]} Be4 {[%emt 0:00:35][%mdl 64] Deflection} 63. Nd6 {[%emt 0:01:23]} Bf3 {[%emt 0:00:13]} 64. Nf5 {[%emt 0:00:18]} Be4 {[%emt 0:00:09][%mdl 64] Deflection} 65. Nd6 {[%emt 0:00:52]} Bf3 {[%emt 0:00:06] Weighted Error Value: White=0.17 (very precise) /Black=0.14 (very precise)} 1/2-1/2